Cogmind - Beta 15 @@@ ROGUE MODE // 2025.09.07 @ 16:30:43 Player: konomiyu Result: Destroyed by H-61 Shepherd with Heavy Assault Cannon Performance ------------- Evolutions (2) 1000 Regions Visited (5) 1000 Robots Destroyed (54) 270 Value Destroyed (1406) 1406 Prototype IDs (25) 500 Alien Tech Used (0) 0 Bonus (348) 348 TOTAL SCORE: 4524 Bonus ------- Follower Combat Kills 120 Aligned with FarCom 300 Friendly Fire -72 Cogmind --------- Core Integrity 0/550 Matter 234/300 Energy 100/100 System Corruption 0% Temperature Cool (0) Movement Core (350) Ox6 Location -8/Materials Parts ------- > --- POWER (1) -------- (None) > --- PROPULSION (4) --- (None) > --- UTILITY (3) ------ Large Storage Unit > --- WEAPON (3) ------- (None) > --- INVENTORY (15) --- Light Deuterium Engine Light Treads Improved Heat Sink Signal Interpreter Transport Network Coupler Targeting Computer Shock Rifle Shock Rifle Shock Rifle Medium Laser Medium Laser Rocket Launcher Scythe Peak State ------------ > --- POWER ------------ Light Nuclear Core > --- PROPULSION ------- Light Treads Aluminum Leg Improved Aluminum Leg Carbon-fiber Leg > --- UTILITY ---------- Cooling System Large Storage Unit Improved Targeting Computer > --- WEAPON ----------- Advanced Beam Cannon Firepult > --- INVENTORY -------- Deuterium Engine Light Deuterium Engine Light Treads Improved Heat Sink Signal Interpreter Transport Network Coupler Targeting Computer Light Armor Plating Shock Rifle Shock Rifle Shock Rifle Medium Laser Medium Laser Rocket Launcher Scythe [Rating: 41] Favorites ----------- Power Light Nuclear Core Engine Ion Engine Power Core Light Nuclear Core Propulsion Aluminum Leg Treads Light Treads Leg Aluminum Leg Utility Targeting Computer Device Cooling System Storage Medium Storage Unit Processor Targeting Computer Protection Light Armor Plating Weapon Medium Laser Energy Gun Medium Laser Energy Cannon Advanced Beam Cannon Ballistic Gun Assault Rifle Launcher Rocket Launcher Slashing Weapon Scythe Build | -11 -10 -10 -10 -9 -8 ------- Run | Yrd Mat Min Exi Min Mat Slots Evolved 4 | . . . . . 4 Power . | . . . . . . Propulsion 2 | . . . . . 2 Utility 1 | . . . . . 1 Weapon 1 | . . . . . 1 Parts Attached 45 | 6 15 1 . 4 19 Power 7 | 1 2 1 . 1 2 Engine 3 | 1 1 . . . 1 Core 4 | . 1 1 . 1 1 Reactor . | . . . . . . Propulsion 13 | 2 2 . . 2 7 Treads 3 | . . . . . 3 Leg 10 | 2 2 . . 2 4 Wheel . | . . . . . . Hover . | . . . . . . Flight . | . . . . . . Utility 9 | 1 4 . . . 4 Device 1 | . . . . . 1 Storage 5 | 1 3 . . . 1 Processor 2 | . 1 . . . 1 Hackware . | . . . . . . Protection 1 | . . . . . 1 Artifact . | . . . . . . Weapon 16 | 2 7 . . 1 6 Energy Gun 8 | . 5 . . . 3 Energy Cannon 2 | . . . . 1 1 Ballistic Gun 2 | 2 . . . . . Ballistic Cannon . | . . . . . . Launcher 2 | . 1 . . . 1 Special Weapon . | . . . . . . Impact Weapon . | . . . . . . Slashing Weapon 2 | . 1 . . . 1 Piercing Weapon . | . . . . . . Special Melee Weapon . | . . . . . . Unidentified Prototypes . | . . . . . . Parts Lost 12 | . . . . . 12 Power 2 | . . . . . 2 Propulsion 6 | . . . . . 6 Utility 1 | . . . . . 1 Weapon 3 | . . . . . 3 Highest Loss Streak 8 | . . . . . 8 To Critical Strikes . | . . . . . . Average Backups 8 | 1 8 10 9 8 9 Power 1 | . 1 1 1 1 1 Propulsion . | . 1 2 1 1 . Utility 1 | . . 2 2 2 3 Weapon 4 | . 5 5 5 4 4 Tool/Special . | . . . . . . Unused Backups 11 | . . . 1 2 8 Power 3 | . . . . 1 2 Propulsion 1 | . . . 1 . . Utility 5 | . . . . 1 4 Weapon 2 | . . . . . 2 Tool/Special . | . . . . . . Average Slot Usage (%) 96 | . 99 100 100 98 87 Engine 3 | . 13 . . . . Core 9 | . . 14 14 14 8 Leg 27 | . 28 28 28 28 25 Device 2 | . . . . . 8 Storage 14 | . 22 14 14 14 9 Processor 10 | . 5 14 14 14 9 Energy Gun 24 | . 26 28 28 25 19 Energy Cannon 1 | . . . . . 4 Peak Build Rating 41 | 6 10 10 11 29 41 Average Rating 12 | 5 7 9 10 12 22 On Entrance 8 | . 6 10 10 11 13 Naked Turns . | . . . . . . Heaviest Build 53 | 13 23 19 19 37 53 Greatest Support 38 | 20 20 20 20 23 38 Greatest Overweight (x) 11 | . 1 . . 1 11 Average Overweight (x) . | . . . . . . Largest Inventory Capacity 15 | 8 10 10 10 10 15 Average Capacity 10 | 7 8 10 10 10 12 Most Carried 15 | 4 10 10 10 10 15 Average Carried 8 | 1 8 9 9 9 10 Final Capacity 15 | 8 10 10 10 10 15 Final Carried 13 | 2 10 10 10 10 13 Class Distribution -------------------- 78% | Mutant 21% | Skirmisher Dominant Class ---------------- Mutant | -10/Materials Mutant | -10/Mines Mutant | -10/Exiles Mutant | -9/Mines Skirmisher | -8/Materials Resources | -11 -10 -10 -10 -9 -8 ----------- Run | Yrd Mat Min Exi Min Mat Matter Collected 1187 | 272 373 52 . 173 317 Remotely . | . . . . . . Salvage Created 1728 | 13 590 . . 163 962 Parts 97 | 3 34 . . 11 49 Haulers Intercepted 4 | . . . . . 4 Recyclers Shooed 2 | . . . . . 2 Parts Field Recycled . | . . . . . . Retrieved Matter . | . . . . . . Parts Self-Destructed . | . . . . . . Prevented . | . . . . . . Kills | -11 -10 -10 -10 -9 -8 ------- Run | Yrd Mat Min Exi Min Mat Combat Hostiles Destroyed 34 | . 17 . . 5 12 Guns 16 | . 9 . . . 7 Cannons 3 | . . . . 2 1 AOE 10 | . 7 . . 3 . Classes Destroyed 12 | 1 3 . . 3 5 Worker 3 | 1 1 . . . 1 Builder 2 | . . . . . 2 Tunneler 1 | . . . . 1 . Hauler 4 | . . . . . 4 Recycler 1 | . . . . . 1 Watcher 7 | . 3 . . . 4 Swarmer 7 | . 3 . . 3 1 Grunt 19 | . 14 . . 1 4 Sentry 6 | . . . . . 6 Demolisher 2 | . . . . 2 . Hunter 1 | . . . . . 1 Zionite 1 | . . . . 1 . Best Kill Streak 5 | 1 5 . . 3 5 Combat Bots Only 3 | . 3 . . 3 3 Max Kills in Single Turn 4 | 1 3 . . 2 4 Gunslinging . | . . . . . . Exploded 2 | . 2 . . 1 . Melee . | . . . . . . Uniques/NPCs Destroyed . | . . . . . . Combat | -11 -10 -10 -10 -9 -8 -------- Run | Yrd Mat Min Exi Min Mat Hostile Shots Fired 230 | . 75 3 . 8 144 Missed 58 | . 18 . . 3 37 Hits 172 | . 57 3 . 5 107 Melee 22 | . . . . . 22 Projectile 150 | . 57 3 . 5 85 AOE 4 | . . . . 1 3 Critical Strikes 15 | . 1 . . . 14 Damage Taken 2546 | . 701 44 . 75 1726 Core 820 | . 218 . . . 602 Absorbed by Shields . | . . . . . . Core Remaining (%) 56 | 100 . . . 12 . Volleys Fired 95 | 3 53 . . 5 34 Largest 3 | 2 2 . . 1 3 Hottest 250 | 40 100 . . 250 250 Shots Fired 196 | 6 99 1 . 5 85 Gun 161 | 6 90 1 . . 64 Cannon 22 | . . . . 5 17 Launcher 13 | . 9 . . . 4 Special . | . . . . . . Kinetic 7 | 6 1 . . . . Thermal 166 | . 83 1 . 5 77 Explosive 13 | . 9 . . . 4 Electromagnetic 10 | . 6 . . . 4 Robot Hit Streak 23 | 1 9 . . 8 23 Robot Miss Streak 7 | 3 5 . . 2 7 Penetration Max . | . . . . . . Secondary Targets . | . . . . . . Shots Hit Robots 122 | 2 58 . . 1 61 Core Hits 84 | 1 33 . . 12 38 Critical Kills 1 | . . . . . 1 Critical Parts Destroyed . | . . . . . . Critical Strikes 10 | . 3 . . . 7 Burn 9 | . 3 . . . 6 Meltdown 1 | . . . . . 1 Melee Attacks 10 | . 5 . . . 5 Impact . | . . . . . . Slashing 10 | . 5 . . . 5 Piercing . | . . . . . . Sneak Attacks . | . . . . . . Combat Hostiles . | . . . . . . Follow-up Attacks . | . . . . . . Damage Inflicted 3227 | 23 1341 . . 358 1505 Guns 1432 | 23 689 . . . 720 Cannons 300 | . . . . 48 252 Explosions 1463 | . 652 . . 310 501 Melee 32 | . . . . . 32 Ramming . | . . . . . . Kinetic 23 | 23 . . . . . Thermal 2263 | . 665 . . 358 1240 Explosive 828 | . 652 . . . 176 Electromagnetic 81 | . 24 . . . 57 Impact . | . . . . . . Slashing 32 | . . . . . 32 Piercing . | . . . . . . Highest Corruption 1 | . 1 1 1 1 . Average Corruption 1 | . 1 1 1 1 . Corruption Purged . | . . . . . . Corruption Blocked . | . . . . . . Effects 17 | . 2 7 3 5 . Message Errors 3 | . . 2 . 1 . Matter Fused 4 | . . 2 1 1 . Heat Flow Errors 3 | . . 1 1 1 . Energy Discharges 1 | . . . . 1 . Data Loss (minor) 3 | . . 1 1 1 . Misfires 1 | . . 1 . . . Alerts 1 | . 1 . . . . Weapon Failures 1 | . 1 . . . . Overload Shots . | . . . . . . Overflow Damage 9 | . . . . 7 2 Projectiles . | . . . . . . Explosions 7 | . . . . 7 . Melee 2 | . . . . . 2 Knockbacks . | . . . . . . Impact . | . . . . . . Kinetic . | . . . . . . Secondary . | . . . . . . Self-Inflicted Damage 74 | . 31 . . 15 28 Shots 7 | . 1 . . 3 3 Rammed 1 | . . . . . 1 Targets Rammed 1 | . . . . . 1 Kicked . | . . . . . . Crushed . | . . . . . . Highest Temperature 662 | . 491 190 184 662 342 Average Temperature 123 | . 114 87 93 220 88 Received Heat Transfer 585 | . 336 24 . . 225 Effects 22 | . 5 . . 12 5 Shutdowns 2 | . 2 . . . . Energy Bleed 4 | . 1 . . 3 . Interference 5 | . 2 . . . 3 Matter Decay 3 | . . . . 2 1 Damage (minor) 1 | . . . . . 1 Damage (major) 7 | . . . . 7 . Siege Activations . | . . . . . . Martial Activations . | . . . . . . Shielding Activations . | . . . . . . Robots Disrupted . | . . . . . . Combat Hostiles . | . . . . . . Robots Corrupted . | . . . . . . Combat Hostiles . | . . . . . . Parts Fried . | . . . . . . Impact Corruptions . | . . . . . . Robots Melted 6 | . 1 . . . 5 Combat Hostiles 5 | . 1 . . . 4 Parts Melted 32 | . 9 . . 5 18 Heat Transferred 9105 | . 2183 . . 2160 4762 Parts Sabotaged . | . . . . . . Parts Stolen . | . . . . . . Parts Stripped . | . . . . . . Power Chain Reactions . | . . . . . . Alert | -11 -10 -10 -10 -9 -8 ------- Run | Yrd Mat Min Exi Min Mat Maximum Alert Level . | . . . . . . Low Security (%) 100 | 100 100 100 . 100 100 Level 1 . | . . . . . . Level 2 . | . . . . . . Level 3 . | . . . . . . Level 4 . | . . . . . . Level 5 . | . . . . . . High Security . | . . . . . . Max Security . | . . . . . . Peak Influence 170 | 5 170 45 . 108 152 Initial 39 | . . 39 . . 24 Average 40 | . 90 9 . 19 49 Influence Increases 1387 | 5 536 108 . 183 555 Destroy 0b10 Robot/C 760 | . 340 80 . 100 240 Destroy 0b10 Robot/NC 90 | 5 20 . . 5 60 Destroy Leader 212 | . 76 20 . 20 96 Allied During Kill 8 | . . 8 . . . Trap Triggered on 0b10 30 | . . . . 30 . Successful Hack 60 | . 18 . . . 42 Disable Machine 45 | . 15 . . . 30 Destroy Structure 152 | . 52 . . 28 72 Lose Combat Pursuer 30 | . 15 . . . 15 Influence Decreases 1349 | 5 434 197 13 119 581 Entered New Map 116 | . . 63 13 . 40 Time Decay 1090 | 5 434 111 . 119 421 Lost Part 120 | . . . . . 120 Lost Ally 23 | . . 23 . . . Squads Dispatched 6 | . 4 . . . 2 Investigation 3 | . 2 . . . 1 Extermination . | . . . . . . Reinforcement 3 | . 2 . . . 1 Assault . | . . . . . . Garrison . | . . . . . . Intercept . | . . . . . . Searches Triggered . | . . . . . . Construction Impeded . | . . . . . . Haulers Reinforced . | . . . . . . Active Scanning Responses . | . . . . . . Cargo Convoy Interrupts . | . . . . . . Stealth | -11 -10 -10 -10 -9 -8 --------- Run | Yrd Mat Min Exi Min Mat Distress Signals 2 | . 2 . . . . Communications Jammed . | . . . . . . Distress Signals . | . . . . . . Times Spotted 59 | . 24 4 . 5 26 Peak Tracking Total 9 | . 4 2 . 3 9 Tactical Retreats 3 | . 2 . . . 1 Traps | -11 -10 -10 -10 -9 -8 ------- Run | Yrd Mat Min Exi Min Mat Traps Triggered 2 | . 2 . . . . Indirectly . | . . . . . . Trap Hack Attempts . | . . . . . . Triggered . | . . . . . . Disarmed . | . . . . . . Reprogrammed . | . . . . . . Reused 3 | . . . . 3 . Traps Extracted . | . . . . . . Installed 3 | . . . . 3 . Triggered 3 | . . . . 3 . Most Traps Carried 1 | . . . . 1 . Machines | -11 -10 -10 -10 -9 -8 ---------- Run | Yrd Mat Min Exi Min Mat Machines Disabled 3 | . 1 . . . 2 Max in Single Turn 1 | . 1 . . . 1 Machines Repaired . | . . . . . . Machines Dismantled . | . . . . . . Machines Sabotaged . | . . . . . . Overloaded Fab Kills . | . . . . . . Hacking | -11 -10 -10 -10 -9 -8 --------- Run | Yrd Mat Min Exi Min Mat Machines Accessed 18 | . 7 . 2 . 9 Terminals 12 | . 6 . . . 6 Fabricators . | . . . . . . Repair Stations . | . . . . . . Recycling Units 2 | . 1 . . . 1 Scanalyzers 2 | . . . . . 2 Garrison Access . | . . . . . . Total Hacks 44 | . 18 . 2 . 24 Successful 18 | . 7 . 2 . 9 Failed 26 | . 11 . . . 15 Catastrophic 7 | . 2 . . . 5 Database Lockouts . | . . . . . . Manual 29 | . 14 . 1 . 14 Terminals 34 | . 16 . . . 18 Fabricators . | . . . . . . Repair Stations . | . . . . . . Recycling Units 4 | . 2 . . . 2 Scanalyzers 4 | . . . . . 4 Garrison Access . | . . . . . . Terminal Hacks 13 | . 5 . 2 . 6 Record 4 | . 1 . 1 . 2 Robot Analysis 3 | . 3 . . . . Branch Access Points 1 | . . . . . 1 Scanalyzer Index 1 | . . . . . 1 Transport Status 1 | . . . . . 1 Hauler Manifests 2 | . 1 . . . 1 Proto ID Catalog 1 | . . . 1 . . Fabricator Hacks . | . . . . . . Repair Station Hacks . | . . . . . . Recycling Unit Hacks 3 | . 2 . . . 1 Report Inventory 2 | . 1 . . . 1 Retrieve Components 1 | . 1 . . . . Scanalyzer 2 | . . . . . 2 Insert Component 2 | . . . . . 2 Garrison Access Hacks . | . . . . . . Unauthorized Hacks . | . . . . . . Terminals . | . . . . . . Fabricators . | . . . . . . Repair Stations . | . . . . . . Recycling Units . | . . . . . . Scanalyzers . | . . . . . . Garrison Access . | . . . . . . Data Cores Recovered . | . . . . . . Used . | . . . . . . Hacking Detections 14 | . 7 . . . 7 Full Trace Events 3 | . 1 . . . 2 Feedback Events 1 | . 1 . . . . Corruption 1 | . 1 . . . . Feedback Blocked . | . . . . . . Robot Schematics Acquired . | . . . . . . Robots Built . | . . . . . . Authchips . | . . . . . . Time . | . . . . . . Total Robot Build Rating . | . . . . . . Part Schematics Acquired . | . . . . . . Parts Built . | . . . . . . Authchips . | . . . . . . Time . | . . . . . . Total Part Build Rating . | . . . . . . Parts Repaired . | . . . . . . Time . | . . . . . . Parts Recycled . | . . . . . . Recycled Matter . | . . . . . . Retrieved Matter . | . . . . . . Retrieved Components 10 | . 10 . . . . Parts Scanalyzed . | . . . . . . Part Schematics Acquired . | . . . . . . Parts Damaged . | . . . . . . Bothacking | -11 -10 -10 -10 -9 -8 ------------ Run | Yrd Mat Min Exi Min Mat Used RIF Installer . | . . . . . . Robots Hacked . | . . . . . . Non-combat . | . . . . . . Combat . | . . . . . . Robot Hacks Applied . | . . . . . . Relay Couplers Released . | . . . . . . Fabnet Peak Effective % . | . . . . . . Robots Rewired . | . . . . . . Allies Hacked . | . . . . . . Hacks Repelled . | . . . . . . Allies | -11 -10 -10 -10 -9 -8 -------- Run | Yrd Mat Min Exi Min Mat Total Allies 3 | . . 3 . . . Largest Group 3 | . . 3 1 1 . Highest-Rated Group 40 | . . 40 16 16 . Highest-Rated Ally 16 | . . 16 16 16 . Total Orders . | . . . . . . Ally Attacks 23 | . . 23 . . . Total Damage 257 | . . 257 . . . Kills 4 | . . 4 . . . Allies Corrupted . | . . . . . . Allies Melted . | . . . . . . Intel | -11 -10 -10 -10 -9 -8 ------- Run | Yrd Mat Min Exi Min Mat Active Infowar (turns) . | . . . . . . Robot Analysis Total 3 | . 3 . . . . Derelict Logs Recovered 2 | . . 1 . 1 . Drone Launches . | . . . . . . Drone Recoveries . | . . . . . . Exploration | -11 -10 -10 -10 -9 -8 ------------- Run | Yrd Mat Min Exi Min Mat Turns Passed 5508 | 840 1201 607 766 838 1256 Spaces Moved 3233 | 283 696 445 631 579 599 Core 8 | 5 . . . . 3 Treads 6 | . . . . . 6 Legs 3219 | 278 696 445 631 579 590 Wheels . | . . . . . . Hover . | . . . . . . Flight . | . . . . . . Fastest Speed 50 | 50 120 120 120 120 120 Average Speed 128 | 118 125 120 120 121 158 Slowest Speed 600 | 120 190 120 120 190 600 Overloaded Moves . | . . . . . . Propulsion Burnouts . | . . . . . . Robots Hopped . | . . . . . . Potential Cave-ins . | . . . . . . Cave-ins Triggered . | . . . . . . Exploration Rate (%) 69 | 23 95 69 92 92 45 Regions Visited 5 Branch Regions 3 Pre-discovered Areas . | . . . . . . Known Exits Taken . | . . . . . . Unknown Exits Taken 5 | 1 1 1 1 1 . Scrap Searched 3 | . . 1 . 2 . Spaces Dug 7 | . 7 . . . . Terrain Destroyed 186 | . 64 . . 39 83 Melee . | . . . . . . Projectile 3 | . . . . 2 1 AOE 183 | . 64 . . 37 82 Terrain Rammed . | . . . . . . Walls Destroyed . | . . . . . . Machines Disabled . | . . . . . . Actions | -11 -10 -10 -10 -9 -8 --------- Run | Yrd Mat Min Exi Min Mat Total 4394 | 781 907 519 641 716 830 Wait 868 | 482 97 71 8 95 115 Move 3228 | 282 695 444 630 578 599 Hop . | . . . . . . Pick Up 62 | 8 15 1 1 10 27 Fast Attach 2 | . . . . 2 . Attach 33 | 6 1 . . 4 22 Detach 7 | . . . . 1 6 Swap 46 | . 30 1 . 3 12 Drop 39 | . 11 2 2 15 9 Fire 95 | 3 53 . . 5 34 Melee 10 | . 5 . . . 5 Ram 1 | . . . . . 1 Kick . | . . . . . . Crush . | . . . . . . Escape Stasis . | . . . . . . Rewire . | . . . . . . Trap 3 | . . . . 3 . Miscellaneous . | . . . . . . Route ------- -11/Scrapyard -10/Materials (discovered 5 exits: [*Mat x3] / [*Min] / [*Sub]) -10/Mines (discovered 2 exits: [*Mat] / *Exi) -10/Exiles (discovered 2 exits: [*Min x2]) -9/Mines (discovered 2 exits: *Mat x2) -8/Materials (discovered 2 exits: [*Fac] / *Sto) History --------- Turn | Location | Event 47 | -11/Scrapyard | Discovered new exit (range 12) 841 | -11/Scrapyard | Entered Materials 862 | -10/Materials | Build established: Mutant 934 | -10/Materials | Discovered new exit (range 16) 1266 | -10/Materials | Core integrity fell below 50% 1435 | -10/Materials | Discovered new exit (range 10) 1478 | -10/Materials | Discovered new exit (range 16) 1549 | -10/Materials | Core integrity fell below 20% 1609 | -10/Materials | Discovered new exit (range 8) 1775 | -10/Materials | Discovered new exit (range 8) 1841 | -10/Materials | Derelicts attacked the area 2042 | -10/Materials | Entered Mines 2058 | -10/Mines | Learned Materials interactive machine intel 2058 | -10/Mines | Assisted by bots powering up and referring to "LRC-V3" 2125 | -10/Mines | Received a Rocket Launcher from a helpful Derelict 2343 | -10/Mines | Discovered new exit (range 12) 2367 | -10/Mines | Deemed a non-threat by the Exiles lab entrance 2368 | -10/Mines | Discovered new exit (range 5) 2649 | -10/Mines | Entered Exiles 2649 | -10/Exiles | Accompanied by 1 ally 2669 | -10/Exiles | Discovered new exit (range 15) 2709 | -10/Exiles | Met 8R-AWN 2730 | -10/Exiles | Met EX-HEX 2811 | -10/Exiles | Met EX-DEC 2871 | -10/Exiles | Visited The Gauntlet 3049 | -10/Exiles | Discovered new exit (range 14) 3146 | -10/Exiles | Met EX-BIN 3208 | -10/Exiles | Aligned with FarCom system 3210 | -10/Exiles | Given EX-Vault access code 3237 | -10/Exiles | Opened EX-Vault 3249 | -10/Exiles | Found Firepult 3275 | -10/Exiles | Warned to stay clear of 0b10 Research branches 3288 | -10/Exiles | Exiles lab attacked by MAIN.C 3415 | -10/Exiles | Left Exiles lab with Firepult 3415 | -10/Exiles | Entered Mines 3415 | -9/Mines | Accompanied by 1 ally 3435 | -9/Mines | Discovered new exit (range 8) 3468 | -9/Mines | Assembled infested the area 3473 | -9/Mines | Assisted by a Guerilla fighting off Assembled 3929 | -9/Mines | Found DCF Scrap (13 items) 3979 | -9/Mines | Learned Materials terminal intel 4032 | -9/Mines | Found a hidden stash of uninstalled traps 4196 | -9/Mines | Discovered new exit (range 8) 4253 | -9/Mines | Entered Materials 4253 | -8/Materials | Evolved 4 slots: Propulsion x2, Utility x1, Weapon x1 4254 | -8/Materials | Loaded intel: 19 interactive machine locations 4255 | -8/Materials | Loaded intel: 12 terminal locations 4558 | -8/Materials | Build established: Skirmisher 4643 | -8/Materials | Discovered new exit (range 16) 4957 | -8/Materials | Identified exit to Storage 5057 | -8/Materials | Discovered new exit (range 4) 5496 | -8/Materials | Core integrity fell below 50% 5506 | -8/Materials | Core integrity fell below 20% 5509 | -8/Materials | Destroyed by H-61 Shepherd with Heavy Assault Cannon Last Messages --------------- 05471_ Carbon-fiber Leg destroyed. 05475_ Lgt. Treads severed. 05477_ Acquired Lgt. Treads. 05482_ Adv. Beam Cannon destroyed. 05489_ K-01 Serf collects debris. 05489_ Acquired Lgt. Treads. 05489_ Lgt. Treads severed. 05494_ Deuterium Engine severed. 05497_ Acquired Deuterium Engine. 05499_ S-10 Pest knocked back. 05500_ Slammed into S-10 Pest. 05501_ Penetrated by Slug. 05501_ Knocked back. 05502_ Deuterium Engine destroyed. 05502_ Lgt. Armor Plating severed. 05504_ Imp. Targeting Computer severed. 05505_ S-10 Pest suffers critical hit (Blast). 05505_ S-10 Pest destroyed. 05506_ K-01 Serf collects debris. 05509_ Acquired Lgt. Treads. Map ----- +----------------------------------------------------+ | | | | | | | | | ????????????##############????????????? | | ????????????#! ????????????? | | ????????????# #???????????? | | ???########## """ """ """ #???????????? | | ???# ! # """ """ """ #???????????? | | ???# """ # """ """ """ #???????????? | | ???# """ # #???????????? | | ???# """ ! ##+#####+##########???????? | | ???# + +???????? | | ???# """ ## #######???????? | | ???# """ ## ### ### #?????????????? | | ???# """ ## ###+###/###???????????? | | ???# ## ## T #??????###### | | ???#######+## # """ #??????# | | ???????# # """ #??????# | | ???????# + """ #??????# | | ??########+## # #??????# | | ??# ## ## """ ##?????# | | ??#" ##%*## """ #?????# | | ??#T """ ##[ ## """ ##?????# | | ??#" """ ##cc## #??????# | | ??# """ ##@c#####+#####????######## | | ??# # s=%#### ########## #?? | | ??# #%%!= ### | | ??# #=% % % | | ??##### ##### ##+############ * ### | | ??????###???### ;## %% [#?"""?## ##?? | | ??????????????# ### """ #?"Y"??# #??? | | ??????????????#H#?# "Y"= #??????# #??? | | ??????????????# #?# " "% #??????# #??? | | ??????????????# #?# #??????# #??? | | ?????????????# k ## #?????? ??? | | ?????????????# #### #####?????? ??? | | ?????????????# g #?###?????????# #?? | | ????????????? # ?????????????# #?? | | ????????????## ?????????????## ##?? | | ???????????? g #?????????????# #??? | | ???????####### ##?????????????? ???? | | ???????# #?????????????? ???? | | ???????# #?????????????? ???? | | ???????# # #???????????????????? | | ???????#[ "T" + #???????????????????? | | ???????# """ # #???????????????????? | | ???????# # #???????????????????? | | ???????######## #???????????????????? | | ?????????????? #???????????????????? | +----------------------------------------------------+ Best States ------------- Heat Dissipation 53 Energy Generation 14 Energy Capacity 450 Matter Stores 300 Matter Capacity 300 Sight Range 16 Terrain Scan Density 10 Armor Coverage 150 Evasion (%) 55 Targeting Accuracy 6 Recoil Reduction 1 Item Schematics ----------------- None Robot Schematics ------------------ None Fabricated ------------ Nothing Repaired ---------- Nothing Alien Tech Used ----------------- None Achievements -------------- None Challenges ------------ None Game ------ Seed DeflectorTiamatExoskeleton Manual? 0 Play Time 00:49:54 Cumulative 8.1 hours Start 2025.09.07 @ 15:37:52 End 2025.09.07 @ 16:30:43 Sessions 1 Manual Loads 0 Difficulty Rogue Special Mode None Game No. 11 Rogue 11 Adventurer 0 Explorer 0 Win Type - Total 0 Types 0/0/0/0/0/0/0/0/0/0 Lore% 8 Gallery% 10 Achievement% 14 Wizard Run 0 Options --------- Layout 1 ASCII 0 Keyboard 0 Movement Mouse Keybinds 0 Fullscreen 2 Font 24/Smallcaps Map View 50x35 Zoom Use 0% Tactical HUD 1 Map Filters NONE Filters NONE Steam 1 RUN: 6e21d1fe-6a60-4eb3-b5ac-36a099e05f58